fUST/lending_fUST_20241227
["ID","MTS","AMOUNT","RATE_DAILY","PERIOD"]
[346782072,1735285648838,-500.0,9.388e-05,2]
[346782073,1735285648860,-500.0,9.388e-05,2]
[346782074,1735285648885,-500.0,9.388e-05,2]
[346782075,1735285648906,-500.0,9.388e-05,2]
[346782076,1735285648927,-500.0,9.388e-05,2]
[346782077,1735285648950,-500.0,9.388e-05,2]
[346782078,1735285648971,-500.0,9.388e-05,2]
[346782079,1735285648991,-500.0,9.388e-05,2]
[346782080,1735285649018,-557.73,9.388e-05,2]
[346782081,1735285649040,-500.0,9.388e-05,2]
[346782082,1735285649063,-500.0,9.388e-05,2]
[346782083,1735285649084,-500.0,9.388e-05,2]
[346782084,1735285649108,-500.0,9.388e-05,2]
[346782085,1735285649130,-500.0,9.388e-05,2]
[346782086,1735285649151,-500.0,9.388e-05,2]
[346782087,1735285649172,-528.85,9.388e-05,2]
[346782088,1735285649195,-19035.98596114,9.388e-05,2]
[346782089,1735285649975,185.8687443,8.219e-05,2]
[346782090,1735285720774,-1425.95829979,9.38e-05,2]
[346782091,1735285720814,-1362.97915919,9.38e-05,2]
[346782092,1735285745814,-1031.87120828,9.38e-05,2]
[346782093,1735285745843,-300.0,9.385e-05,2]
[346782094,1735285745871,-149.86584069,9.385e-05,2]
[346782095,1735285745907,-150.13415931,9.385e-05,2]
[346782096,1735285745933,-500.0,9.386e-05,2]
[346782097,1735285745960,-500.0,9.386e-05,2]
[346782098,1735285745988,-119.97499953,9.386e-05,2]
[346782099,1735285770665,-392.63500047,9.386e-05,2]
[346782100,1735285770692,-1144.13897265,9.386e-05,2]
[346782101,1735285770724,-311.926623,9.386e-05,2]
[346782102,1735285770773,-1536.77397312,9.386e-05,2]
[346782103,1735285795671,-1604.48346451,9.386e-05,2]
[346782104,1735285795741,-1295.5165355,9.386e-05,2]
[346782171,1735285833776,-300.0,9.385e-05,2]
[346782173,1735285833786,-300.0,9.385e-05,2]
[346782175,1735285833795,-1209.27043122,9.386e-05,2]
[346782177,1735285833805,-2509.61,9.386e-05,2]
[346782179,1735285833814,-438.53582398,9.386e-05,2]
[346782181,1735285833824,-500.0,9.386e-05,2]
[346782183,1735285833833,-681.74,9.386e-05,2]
[346782185,1735285833843,-500.0,9.386e-05,2]
[346782187,1735285833852,-2694.33,9.386e-05,2]
[346782189,1735285833862,-74.3807808,9.386e-05,2]
[346782192,1735285833882,-1451.0192192,9.386e-05,2]
[346782194,1735285833892,-778.58,9.386e-05,2]
[346782196,1735285833902,-1264.39,9.386e-05,2]
[346782197,1735285833911,-500.0,9.386e-05,2]
[346782198,1735285833924,-959.8,9.386e-05,2]
[346782199,1735285833935,-500.0,9.386e-05,2]
[346782200,1735285833945,-809.83,9.386e-05,2]
[346782201,1735285833954,-500.0,9.386e-05,2]
[346782202,1735285833964,-839.78,9.387e-05,2]
[346782203,1735285833973,-457.31958601,9.387e-05,2]
[346782204,1735285835618,-473.915,9.386e-05,2]
[346782232,1735285838504,-26.085,9.386e-05,2]
[346782234,1735285838515,-372.35079612,9.386e-05,2]
[346782297,1735285839109,-127.64920388,9.386e-05,2]
[346782299,1735285839122,-42.68041399,9.387e-05,2]
[346782301,1735285839133,-500.0,9.387e-05,2]
[346782306,1735285839145,-1425.62,9.387e-05,2]
[346782310,1735285839157,-500.0,9.387e-05,2]
[346782314,1735285839169,-503.36,9.387e-05,2]
[346782317,1735285839183,-18995.75,9.387e-05,2]
[346782321,1735285839195,-692.24,9.387e-05,2]
[346782325,1735285839207,-578.90438417,9.387e-05,2]
[346782328,1735285839220,-856.83,9.387e-05,2]
[346782331,1735285839232,-500.0,9.387e-05,2]
[346782336,1735285839244,-500.0,9.387e-05,2]
[346782339,1735285839255,-852.98,9.387e-05,2]
[346782342,1735285839266,-640.45385896,9.387e-05,2]
[346782345,1735285839281,-183.18614104,9.387e-05,2]
[346782350,1735285839293,-602.77409713,9.387e-05,2]
[346782352,1735285839304,-500.0,9.387e-05,2]
[346782355,1735285839315,-500.0,9.387e-05,2]
[346782358,1735285839327,-500.0,9.387e-05,2]
[346782360,1735285839338,-500.0,9.387e-05,2]
[346782363,1735285839349,-500.0,9.387e-05,2]
[346782366,1735285839361,-500.0,9.387e-05,2]
[346782369,1735285839373,-947.06,9.387e-05,2]
[346782374,1735285839386,-500.0,9.387e-05,2]
[346782377,1735285839398,-1250.89,9.387e-05,2]
[346782379,1735285839410,-500.0,9.387e-05,2]
[346782382,1735285839424,-500.0,9.387e-05,2]
[346782383,1735285839433,-660.37,9.387e-05,2]
[346782385,1735285839442,-500.0,9.387e-05,2]
[346782387,1735285839451,-500.0,9.387e-05,2]
[346782403,1735285839588,-500.0,9.388e-05,2]
[346782405,1735285839598,-500.0,9.388e-05,2]
[346782407,1735285839607,-500.0,9.388e-05,2]
[346782409,1735285839616,-500.0,9.388e-05,2]
[346782411,1735285839626,-500.0,9.388e-05,2]
[346782413,1735285839635,-500.0,9.388e-05,2]
[346782415,1735285839643,-500.0,9.388e-05,2]
[346782417,1735285839653,-500.0,9.388e-05,2]
[346782419,1735285839662,-500.0,9.388e-05,2]
[346782421,1735285839671,-302.72498913,9.388e-05,2]
[346782423,1735285839682,-500.0,9.388e-05,2]
[346782424,1735285839691,-500.0,9.388e-05,2]
[346782427,1735285839700,-500.0,9.388e-05,2]
[346782429,1735285839710,-500.0,9.388e-05,2]
[346782430,1735285839719,-500.0,9.388e-05,2]
[346782432,1735285839728,-500.0,9.388e-05,2]
[346782435,1735285839742,-500.0,9.388e-05,2]
[346782437,1735285839751,-500.0,9.388e-05,2]
[346782439,1735285839761,-500.0,9.388e-05,2]
[346782441,1735285839770,-500.0,9.388e-05,2]
[346782443,1735285839779,-662.6,9.388e-05,2]
[346782445,1735285839789,-500.0,9.388e-05,2]
[346782447,1735285839798,-500.0,9.388e-05,2]
[346782449,1735285839807,-500.0,9.388e-05,2]
[346782451,1735285839817,-500.0,9.388e-05,2]
[346782453,1735285839827,-500.0,9.388e-05,2]
[346782455,1735285839837,-500.0,9.388e-05,2]
[346782457,1735285839846,-500.0,9.388e-05,2]
[346782459,1735285839855,-503.78186082,9.388e-05,2]
[346782461,1735285839865,-500.0,9.388e-05,2]
[346782463,1735285839874,-500.0,9.388e-05,2]
[346782465,1735285839884,-500.0,9.388e-05,2]
[346782467,1735285839894,-549.13,9.388e-05,2]
[346782469,1735285839903,-500.0,9.388e-05,2]
[346782471,1735285839912,-500.0,9.388e-05,2]
[346782473,1735285839921,-500.0,9.388e-05,2]
[346782476,1735285839933,-500.0,9.388e-05,2]
[346782479,1735285839942,-634.2945631,9.388e-05,2]
[346782482,1735285839952,-500.0,9.388e-05,2]
[346782484,1735285839961,-508.31446905,9.388e-05,2]
[346782486,1735285839970,-500.0,9.388e-05,2]
[346782488,1735285839980,-166.07138247,9.389e-05,2]
[346782490,1735285839989,-509.65960546,9.389e-05,2]
[346782492,1735285839999,-500.0,9.389e-05,2]
[346782494,1735285840008,-500.0,9.389e-05,2]
[346782495,1735285840018,-500.0,9.389e-05,2]
[346782497,1735285840027,-500.0,9.389e-05,2]
[346782499,1735285840037,-500.0,9.389e-05,2]
[346782501,1735285840047,-425.45860643,9.389e-05,2]
[346782504,1735285840056,-504.95424712,9.389e-05,2]
[346782506,1735285840066,-500.0,9.389e-05,2]
[346782509,1735285840078,-649.3,9.389e-05,2]
[346782511,1735285840087,-500.0,9.389e-05,2]
[346782513,1735285840097,-500.0,9.389e-05,2]
[346782515,1735285840107,-500.0,9.389e-05,2]
[346782517,1735285840116,-500.0,9.389e-05,2]
[346782519,1735285840125,-5107.95,9.39e-05,2]
[346782522,1735285840136,-684.8,9.39e-05,2]
[346782524,1735285840145,-1648.42,9.39e-05,2]
[346782526,1735285840155,-500.0,9.39e-05,2]
[346782528,1735285840164,-500.0,9.39e-05,2]
[346782530,1735285840175,-500.0,9.39e-05,2]
[346782532,1735285840185,-659.87,9.39e-05,2]
[346782534,1735285840195,-500.0,9.39e-05,2]
[346782536,1735285840204,-500.0,9.39e-05,2]
[346782538,1735285840213,-595.22932657,9.39e-05,2]
[346782540,1735285840223,-500.0,9.39e-05,2]
[346782542,1735285840234,-500.0,9.39e-05,2]
[346782544,1735285840243,-500.0,9.391e-05,2]
[346782546,1735285840253,-500.0,9.391e-05,2]
[346782548,1735285840263,-5080.82,9.391e-05,2]
[346782550,1735285840272,-500.0,9.391e-05,2]
[346782552,1735285840282,-554.83,9.391e-05,2]
[346782554,1735285840291,-500.0,9.392e-05,2]
[346782556,1735285840300,-500.0,9.392e-05,2]
[346782558,1735285840310,-5643.00073017,9.392e-05,2]
[346782579,1735285840515,-500.7160745,9.388e-05,2]
[346782580,1735285840525,-1121.01926983,9.392e-05,2]
[346782581,1735285840535,-151.0,9.393e-05,2]
[346782582,1735285840544,-151.0,9.393e-05,2]
[346782583,1735285840553,-169.85,9.423e-05,2]
[346782584,1735285840563,-705.938,9.44e-05,2]
[346782585,1735285840572,-508.31446903,9.526e-05,2]
[346782586,1735285840582,-213.45973936,9.573e-05,2]
[346782587,1735285840592,-535.351,9.574e-05,2]
[346782589,1735285840601,-2074.627,9.574e-05,2]
[346782591,1735285840610,-2336.286,9.574e-05,2]
[346782592,1735285840620,-398.0,9.574e-05,2]
[346782594,1735285840630,-399.408,9.574e-05,2]
[346782595,1735285840639,-350.5080777,9.58e-05,2]
[346782598,1735285840649,-500.0,9.66e-05,2]
[346782601,1735285840659,-500.0,9.66e-05,2]
[346782603,1735285840668,-500.0,9.66e-05,2]
[346782605,1735285840679,-539.33,9.66e-05,2]
[346782607,1735285840688,-500.0,9.66e-05,2]
[346782609,1735285840697,-500.0,9.66e-05,2]
[346782611,1735285840706,-512.61,9.66e-05,2]
[346782613,1735285840715,-7102.11,9.66e-05,2]
[346782615,1735285840724,-2509.61,9.66e-05,2]
[346782617,1735285840736,-500.0,9.66e-05,2]
[346782619,1735285840746,-681.74,9.66e-05,2]
[346782621,1735285840756,-500.0,9.66e-05,2]
[346782623,1735285840765,-2694.33,9.66e-05,2]
[346782625,1735285840775,-1525.4,9.66e-05,2]
[346782627,1735285840784,-778.58,9.66e-05,2]
[346782629,1735285840793,-1264.39,9.66e-05,2]
[346782631,1735285840803,-500.0,9.66e-05,2]
[346782633,1735285840813,-959.8,9.66e-05,2]
[346782635,1735285840823,-500.0,9.66e-05,2]
[346782636,1735285840832,-809.83,9.66e-05,2]
[346782638,1735285840842,-621.95393674,9.66e-05,2]
[346782640,1735285840851,-500.0,9.66e-05,2]
[346782642,1735285840861,-500.0,9.661e-05,2]
[346782644,1735285840870,-500.0,9.661e-05,2]
[346782646,1735285840880,-500.0,9.661e-05,2]
[346782648,1735285840889,-616.44,9.661e-05,2]
[346782649,1735285840899,-500.0,9.661e-05,2]
[346782650,1735285840908,-500.0,9.661e-05,2]
[346782651,1735285840918,-500.0,9.661e-05,2]
[346782652,1735285840931,-151.0,9.661e-05,2]
[346782653,1735285840941,-151.0,9.661e-05,2]
[346782654,1735285840951,-500.0,9.661e-05,2]
[346782655,1735285840961,-500.0,9.661e-05,2]
[346782656,1735285840970,-500.0,9.661e-05,2]
[346782657,1735285840980,-500.0,9.661e-05,2]
[346782658,1735285840990,-500.0,9.661e-05,2]
[346782659,1735285840999,-839.78,9.661e-05,2]
[346782660,1735285841009,-500.0,9.661e-05,2]
[346782661,1735285841019,-500.0,9.661e-05,2]
[346782662,1735285841028,-1425.62,9.661e-05,2]
[346782663,1735285841039,-500.0,9.661e-05,2]
[346782664,1735285841048,-503.36,9.661e-05,2]
[346782665,1735285841058,-18995.75,9.661e-05,2]
[346782666,1735285841068,-692.24,9.661e-05,2]
[346782667,1735285841078,-856.83,9.661e-05,2]
[346782668,1735285841088,-500.0,9.661e-05,2]
[346782669,1735285841097,-500.0,9.661e-05,2]
[346782670,1735285841107,-852.98,9.661e-05,2]
[346782671,1735285841117,-823.64,9.661e-05,2]
[346782672,1735285841126,-560.13161228,9.661e-05,2]
[346782673,1735285841135,-500.0,9.661e-05,2]
[346782674,1735285841145,-500.0,9.661e-05,2]
[346782675,1735285841154,-500.17744206,9.661e-05,2]
[346782676,1735285841164,-947.06,9.661e-05,2]
[346782677,1735285841173,-500.0,9.661e-05,2]
[346782678,1735285841186,-1250.89,9.661e-05,2]
[346782680,1735285841195,-500.0,9.661e-05,2]
[346782681,1735285841205,-500.0,9.661e-05,2]
[346782683,1735285841214,-660.37,9.661e-05,2]
[346782685,1735285841224,-522.19,9.661e-05,2]
[346782687,1735285841234,-500.0,9.661e-05,2]
[346782689,1735285841243,-500.0,9.662e-05,2]
[346782691,1735285841253,-500.0,9.662e-05,2]
[346782693,1735285841265,-573.37166057,9.662e-05,2]
[346782695,1735285841274,-500.0,9.662e-05,2]
[346782697,1735285841284,-575.4,9.662e-05,2]
[346782699,1735285841294,-500.0,9.662e-05,2]
[346782701,1735285841303,-500.0,9.662e-05,2]
[346782703,1735285841313,-500.0,9.662e-05,2]
[346782705,1735285841323,-603.75902898,9.662e-05,2]
[346782707,1735285841332,-500.0,9.662e-05,2]
[346782709,1735285841342,-500.0,9.662e-05,2]
[346782711,1735285841352,-500.0,9.662e-05,2]
[346782713,1735285841361,-500.0,9.662e-05,2]
[346782715,1735285841371,-500.0,9.662e-05,2]
[346782717,1735285841380,-500.0,9.662e-05,2]
[346782720,1735285841390,-500.0,9.662e-05,2]
[346782721,1735285841400,-557.73,9.662e-05,2]
[346782723,1735285841411,-505.00262275,9.662e-05,2]
[346782725,1735285841423,-500.0,9.662e-05,2]
[346782728,1735285841435,-500.0,9.662e-05,2]
[346782729,1735285841444,-500.0,9.662e-05,2]
[346782731,1735285841453,-500.0,9.662e-05,2]
[346782733,1735285841463,-528.85,9.662e-05,2]
[346782736,1735285841473,-500.0,9.662e-05,2]
[346782737,1735285841483,-500.0,9.662e-05,2]
[346782740,1735285841492,-500.0,9.662e-05,2]
[346782742,1735285841501,-500.0,9.662e-05,2]
[346782744,1735285841510,-500.0,9.662e-05,2]
[346782746,1735285841520,-500.0,9.662e-05,2]
[346782747,1735285841529,-500.0,9.662e-05,2]
[346782749,1735285841539,-500.0,9.662e-05,2]
[346782752,1735285841548,-500.0,9.662e-05,2]
[346782754,1735285841559,-151.0,9.662e-05,2]
[346782756,1735285841568,-151.0,9.662e-05,2]
[346782758,1735285841577,-500.0,9.662e-05,2]
[346782760,1735285841587,-640.37095344,9.662e-05,2]
[346782762,1735285841596,-500.0,9.662e-05,2]
[346782764,1735285841606,-535.29112324,9.662e-05,2]
[346782766,1735285841615,-500.0,9.662e-05,2]
[346782767,1735285841625,-500.0,9.662e-05,2]
[346782768,1735285841634,-500.0,9.662e-05,2]
[346782769,1735285841643,-500.0,9.662e-05,2]
[346782770,1735285841652,-500.0,9.662e-05,2]
[346782771,1735285841662,-236.70053891,9.662e-05,2]
[346782772,1735285841758,-662.6,9.662e-05,2]
[346782773,1735285841769,-500.0,9.662e-05,2]
[346782774,1735285841779,-500.0,9.662e-05,2]
[346782775,1735285841788,-500.0,9.662e-05,2]
[346782776,1735285841797,-500.0,9.662e-05,2]
[346782777,1735285841806,-500.0,9.662e-05,2]
[346782778,1735285841816,-282.42687449,9.662e-05,2]
[346782779,1735285841825,-500.0,9.662e-05,2]
[346782781,1735285841835,-1626.09574544,9.662e-05,2]
[346782782,1735285841845,-570.17847431,9.662e-05,2]
[346782784,1735285841855,-500.0,9.662e-05,2]
[346782786,1735285841864,-549.13,9.662e-05,2]
[346782788,1735285841873,-500.0,9.662e-05,2]
[346782790,1735285841883,-500.0,9.662e-05,2]
[346782792,1735285841892,-500.0,9.662e-05,2]
[346782794,1735285841901,-500.0,9.662e-05,2]
[346782796,1735285841910,-500.0,9.662e-05,2]
[346782798,1735285841919,-505.54849393,9.663e-05,2]
[346782800,1735285841929,-500.0,9.663e-05,2]
[346782802,1735285841938,-500.0,9.663e-05,2]
[346782804,1735285841947,-500.0,9.663e-05,2]
[346782806,1735285841957,-500.0,9.663e-05,2]
[346782808,1735285841966,-500.0,9.663e-05,2]
[346782810,1735285841975,-435.96481585,9.663e-05,2]
[346782812,1735285841985,-500.0,9.663e-05,2]
[346782814,1735285841994,-500.0,9.663e-05,2]
[346782816,1735285842003,-500.0,9.663e-05,2]
[346782818,1735285842013,-508.31446903,9.663e-05,2]
[346782820,1735285842021,-684.8,9.664e-05,2]
[346782822,1735285842031,-1648.42,9.664e-05,2]
[346782824,1735285842040,-500.0,9.664e-05,2]
[346782826,1735285842050,-500.0,9.664e-05,2]
[346782828,1735285842059,-500.0,9.664e-05,2]
[346782829,1735285842068,-659.87,9.664e-05,2]
[346782831,1735285842078,-500.0,9.664e-05,2]
[346782833,1735285842087,-500.0,9.664e-05,2]
[346782836,1735285842097,-151.0,9.664e-05,2]
[346782837,1735285842107,-151.0,9.664e-05,2]
[346782839,1735285842117,-500.0,9.664e-05,2]
[346782841,1735285842126,-500.0,9.664e-05,2]
[346782844,1735285842135,-500.0,9.665e-05,2]
[346782845,1735285842145,-5080.82,9.665e-05,2]
[346782847,1735285842155,-500.0,9.665e-05,2]
[346782850,1735285842164,-554.83,9.665e-05,2]
[346782852,1735285842175,-500.0,9.666e-05,2]
[346782853,1735285842187,-500.0,9.666e-05,2]
[346782855,1735285842196,-6764.02,9.666e-05,2]
[346782857,1735285842205,-395.298,9.72e-05,2]
[346782859,1735285842215,-9819.28779704,9.76e-05,2]
[346782861,1735285842224,-151.0,9.767e-05,2]
[346782863,1735285842233,-257.725875,9.767e-05,2]
[346782865,1735285842242,-154.0,9.835e-05,2]
[346782867,1735285842252,-154.0,9.835e-05,2]
[346782869,1735285842262,-154.0,9.835e-05,2]
[346782871,1735285842271,-154.0,9.835e-05,2]
[346782873,1735285842280,-154.0,9.835e-05,2]
[346782875,1735285842290,-154.0,9.835e-05,2]
[346782877,1735285842299,-154.0,9.835e-05,2]
[346782879,1735285842308,-154.0,9.835e-05,2]
[346782881,1735285842318,-154.0,9.835e-05,2]
[346782883,1735285842327,-154.0,9.835e-05,2]
[346782885,1735285842336,-154.0,9.835e-05,2]
[346782887,1735285842346,-154.0,9.835e-05,2]
[346782889,1735285842358,-154.0,9.835e-05,2]
[346782891,1735285842367,-154.0,9.835e-05,2]
[346782893,1735285842377,-154.0,9.835e-05,2]
[346782895,1735285842386,-154.0,9.835e-05,2]
[346782897,1735285842396,-154.0,9.835e-05,2]
[346782899,1735285842405,-154.0,9.835e-05,2]
[346782901,1735285842414,-154.0,9.835e-05,2]
[346782903,1735285842423,-161.01,9.835e-05,2]
[346782905,1735285842434,-9819.28779704,9.913e-05,2]
[346782907,1735285842444,-500.0,9.934e-05,2]
[346782909,1735285842454,-500.0,9.934e-05,2]
[346782911,1735285842467,-500.0,9.934e-05,2]
[346782913,1735285842476,-539.33,9.934e-05,2]
[346782915,1735285842486,-500.0,9.934e-05,2]
[346782917,1735285842495,-500.0,9.934e-05,2]
[346782919,1735285842505,-512.61,9.934e-05,2]
[346782921,1735285842514,-7102.11,9.934e-05,2]
[346782923,1735285842523,-2509.61,9.934e-05,2]
[346782925,1735285842533,-499.83,9.934e-05,2]
[346782927,1735285842543,-681.74,9.934e-05,2]
[346782929,1735285842552,-349.09,9.934e-05,2]
[346782931,1735285842562,-2694.33,9.934e-05,2]
[346782933,1735285842571,-1525.4,9.934e-05,2]
[346782935,1735285842580,-778.58,9.934e-05,2]
[346782937,1735285842590,-1264.39,9.934e-05,2]
[346782940,1735285842611,-500.0,9.934e-05,2]
[346782942,1735285842620,-959.8,9.934e-05,2]
[346782944,1735285842629,-809.83,9.934e-05,2]
[346782946,1735285842638,-500.0,9.934e-05,2]
[346782948,1735285842647,-500.0,9.935e-05,2]
[346782950,1735285842657,-485.19482208,9.935e-05,2]
[346782952,1735285842666,-500.0,9.935e-05,2]
[346782954,1735285842676,-616.44,9.935e-05,2]
[346782956,1735285842685,-500.0,9.935e-05,2]
[346782958,1735285842694,-500.0,9.935e-05,2]
[346782960,1735285842703,-500.0,9.935e-05,2]
[346782962,1735285842712,-151.0,9.935e-05,2]
[346782963,1735285842721,-500.0,9.935e-05,2]
[346782965,1735285842731,-500.0,9.935e-05,2]
[346782968,1735285842744,-500.0,9.935e-05,2]
[346782969,1735285842753,-500.0,9.935e-05,2]
[346782971,1735285842763,-500.0,9.935e-05,2]
[346782973,1735285842772,-839.78,9.935e-05,2]
[346782975,1735285842783,-500.0,9.935e-05,2]
[346782977,1735285842792,-500.0,9.935e-05,2]
[346782979,1735285842801,-1425.62,9.935e-05,2]
[346782981,1735285842811,-500.0,9.935e-05,2]
[346782983,1735285842821,-503.36,9.935e-05,2]
[346782985,1735285842830,-18995.75,9.935e-05,2]
[346782987,1735285842839,-692.24,9.935e-05,2]
[346782990,1735285842848,-856.83,9.935e-05,2]
[346782992,1735285842857,-500.0,9.935e-05,2]
[346782996,1735285842877,-500.0,9.935e-05,2]
[346782998,1735285842886,-852.98,9.935e-05,2]
[346783000,1735285842896,-823.64,9.935e-05,2]
[346783002,1735285842906,-500.0,9.935e-05,2]
[346783005,1735285842916,-500.0,9.935e-05,2]
[346783007,1735285842927,-947.06,9.935e-05,2]
[346783009,1735285842936,-500.0,9.935e-05,2]
[346783011,1735285842946,-1250.89,9.935e-05,2]
[346783013,1735285842956,-234.18639343,9.935e-05,2]
[346783015,1735285842965,-500.0,9.935e-05,2]
[346783017,1735285842975,-660.37,9.935e-05,2]
[346783020,1735285842985,-500.0,9.936e-05,2]
[346783022,1735285842995,-500.0,9.936e-05,2]
[346783024,1735285843005,-500.0,9.936e-05,2]
[346783028,1735285843015,-500.0,9.936e-05,2]
[346783032,1735285843025,-500.0,9.936e-05,2]
[346783036,1735285843034,-500.0,9.936e-05,2]
[346783040,1735285843044,-500.0,9.936e-05,2]
[346783044,1735285843054,-500.0,9.936e-05,2]
[346783048,1735285843063,-500.0,9.936e-05,2]
[346783051,1735285843073,-500.0,9.936e-05,2]
[346783054,1735285843082,-500.0,9.936e-05,2]
[346783057,1735285843091,-500.0,9.936e-05,2]
[346783060,1735285843101,-557.73,9.936e-05,2]
[346783063,1735285843111,-500.0,9.936e-05,2]
[346783065,1735285843120,-500.0,9.936e-05,2]
[346783067,1735285843130,-500.0,9.936e-05,2]
[346783070,1735285843139,-528.85,9.936e-05,2]
[346783073,1735285843149,-500.0,9.936e-05,2]
[346783076,1735285843158,-500.0,9.936e-05,2]
[346783079,1735285843168,-500.0,9.936e-05,2]
[346783081,1735285843179,-500.0,9.936e-05,2]
[346783083,1735285843188,-500.0,9.936e-05,2]
[346783085,1735285843198,-500.0,9.936e-05,2]
[346783087,1735285843208,-500.0,9.936e-05,2]
[346783089,1735285843217,-500.0,9.936e-05,2]
[346783091,1735285843227,-500.0,9.936e-05,2]
[346783093,1735285843237,-151.0,9.936e-05,2]
[346783095,1735285843246,-500.0,9.936e-05,2]
[346783097,1735285843256,-500.0,9.936e-05,2]
[346783099,1735285843266,-504.71387122,9.936e-05,2]
[346783101,1735285843276,-500.0,9.936e-05,2]
[346783103,1735285843285,-500.0,9.936e-05,2]
[346783105,1735285843295,-500.0,9.936e-05,2]
[346783107,1735285843304,-500.0,9.936e-05,2]
[346783109,1735285843314,-662.6,9.936e-05,2]
[346783111,1735285843323,-500.0,9.936e-05,2]
[346783113,1735285843333,-500.0,9.936e-05,2]
[346783115,1735285843343,-463.20617262,9.936e-05,2]
[346783118,1735285843353,-500.0,9.936e-05,2]
[346783120,1735285843362,-623.02351262,9.936e-05,2]
[346783121,1735285843372,-500.0,9.936e-05,2]
[346783123,1735285843382,-500.0,9.936e-05,2]
[346783126,1735285843392,-549.13,9.936e-05,2]
[346783128,1735285843402,-500.0,9.936e-05,2]
[346783130,1735285843412,-500.0,9.936e-05,2]
[346783132,1735285843422,-500.0,9.936e-05,2]
[346783134,1735285843434,-500.0,9.936e-05,2]
[346783136,1735285843443,-281.88658548,9.936e-05,2]
[346783138,1735285843452,-500.0,9.937e-05,2]
[346783140,1735285843462,-500.0,9.937e-05,2]
[346783142,1735285843473,-500.0,9.937e-05,2]
[346783144,1735285843483,-500.0,9.937e-05,2]
[346783146,1735285843492,-500.0,9.937e-05,2]
[346783148,1735285843502,-500.0,9.937e-05,2]
[346783150,1735285843511,-500.0,9.937e-05,2]
[346783152,1735285843521,-684.8,9.938e-05,2]
[346783154,1735285843532,-1648.42,9.938e-05,2]
[346783156,1735285843542,-500.0,9.938e-05,2]
[346783158,1735285843552,-500.0,9.938e-05,2]
[346783160,1735285843561,-500.0,9.938e-05,2]
[346783162,1735285843571,-659.87,9.938e-05,2]
[346783164,1735285843581,-500.0,9.938e-05,2]
[346783166,1735285843592,-500.0,9.938e-05,2]
[346783168,1735285843601,-151.0,9.938e-05,2]
[346783170,1735285843611,-500.0,9.938e-05,2]
[346783172,1735285843621,-500.0,9.938e-05,2]
[346783174,1735285843630,-500.0,9.939e-05,2]
[346783176,1735285843640,-5080.82,9.939e-05,2]
[346783178,1735285843649,-554.83,9.939e-05,2]
[346783180,1735285843659,-500.0,9.94e-05,2]
[346783182,1735285843668,-500.0,9.94e-05,2]
[346783184,1735285843678,-6764.02,9.94e-05,2]
[346783186,1735285843687,-1626.09574543,9.986e-05,2]
[346783188,1735285843697,-1000.0,0.0001,2]
[346783190,1735285843707,-300.0,0.0001,2]
[346783192,1735285843715,-151.0,0.0001,2]
[346783194,1735285843725,-500.0,0.00010208,2]
[346783196,1735285843736,-500.0,0.00010208,2]
[346783198,1735285843748,-500.0,0.00010208,2]
[346783200,1735285843757,-539.33,0.00010208,2]
[346783202,1735285843767,-500.0,0.00010208,2]
[346783204,1735285843777,-500.0,0.00010208,2]
[346783206,1735285843786,-512.61,0.00010208,2]
[346783218,1735285843884,-7102.11,0.00010208,2]
[346783221,1735285843903,-2509.61,0.00010208,2]
[346783223,1735285843912,-681.74,0.00010208,2]
[346783225,1735285843921,-2694.33,0.00010208,2]
[346783227,1735285843933,-1525.4,0.00010208,2]
[346783229,1735285843944,-778.58,0.00010208,2]
[346783231,1735285843953,-1264.39,0.00010208,2]
[346783233,1735285843962,-500.0,0.00010208,2]
[346783235,1735285843971,-959.8,0.00010208,2]
[346783237,1735285843980,-809.83,0.00010208,2]